fUST/lending_fUST_20250626
["ID","MTS","AMOUNT","RATE_DAILY","PERIOD"]
[367814213,1750935046414,-460.0,0.00016712,2]
[367814215,1750935046422,-1156.67,0.00016712,2]
[367814217,1750935046432,-460.0,0.00016712,2]
[367814219,1750935046442,-460.0,0.00016712,2]
[367814221,1750935046451,-460.0,0.00016712,2]
[367814223,1750935046461,-460.0,0.00016712,2]
[367814225,1750935046471,-467.82479433,0.00016712,2]
[367814227,1750935046480,-827.0,0.00016739,2]
[367814229,1750935046489,-502.51241642,0.00016739,2]
[367814231,1750935046498,-500.0,0.00016739,2]
[367814233,1750935046508,-803.0,0.00016739,2]
[367814235,1750935046517,-151.0,0.00016739,2]
[367814237,1750935046526,-827.0,0.00016767,2]
[367814239,1750935046536,-500.0,0.00016767,2]
[367814241,1750935046545,-803.0,0.00016767,2]
[367814243,1750935046554,-500.0,0.00016773,2]
[367814245,1750935046563,-500.0,0.00016773,2]
[367814247,1750935046572,-395.5265441,0.00016773,2]
[367814248,1750935046582,-500.0,0.00016773,2]
[367814250,1750935046591,-500.0,0.00016773,2]
[367814252,1750935046600,-500.84850324,0.00016773,2]
[367814253,1750935046609,-500.0,0.00016773,2]
[367814255,1750935046618,-500.30344921,0.00016773,2]
[367814257,1750935046627,-501.20861726,0.00016773,2]
[367814259,1750935046637,-500.0,0.00016773,2]
[367814261,1750935046646,-500.0,0.00016773,2]
[367814263,1750935046655,-500.0,0.00016773,2]
[367814265,1750935046664,-500.0,0.00016773,2]
[367814267,1750935046673,-827.0,0.00016794,2]
[367814269,1750935046683,-500.0,0.00016794,2]
[367814271,1750935046692,-803.0,0.00016794,2]
[367814272,1750935046701,-827.0,0.00016822,2]
[367814274,1750935046710,-500.0,0.00016822,2]
[367814276,1750935046720,-803.0,0.00016822,2]
[367814278,1750935046729,-827.0,0.00016849,2]
[367814280,1750935046741,-803.0,0.00016849,2]
[367814282,1750935046750,-827.0,0.00016876,2]
[367814284,1750935046759,-803.0,0.00016876,2]
[367814286,1750935046769,-604.91226586,0.00016886,2]
[367814288,1750935046783,-500.0,0.00016899,2]
[367814290,1750935046792,-2405.49793727,0.000169,2]
[367814291,1750935046801,-827.0,0.00016904,2]
[367814293,1750935046812,-803.0,0.00016904,2]
[367814295,1750935046823,-827.0,0.00016931,2]
[367814297,1750935046832,-803.0,0.00016931,2]
[367814299,1750935046841,-308.0,0.00016953,2]
[367814301,1750935046852,-827.0,0.00016959,2]
[367814303,1750935046861,-803.0,0.00016959,2]
[367814305,1750935046870,-500.0,0.00016984,2]
[367814307,1750935046879,-500.0,0.00016984,2]
[367814309,1750935046888,-500.0,0.00016984,2]
[367814311,1750935046898,-500.0,0.00016984,2]
[367814312,1750935046907,-500.0,0.00016984,2]
[367814314,1750935046916,-500.0,0.00016984,2]
[367814316,1750935046925,-185.94107673,0.00016984,2]
[367814318,1750935046935,-827.0,0.00016986,2]
[367814320,1750935046944,-803.0,0.00016986,2]
[367814322,1750935046954,-460.0,0.00016986,2]
[367814324,1750935046964,-460.0,0.00016986,2]
[367814326,1750935046973,-460.0,0.00016986,2]
[367814328,1750935046984,-460.0,0.00016986,2]
[367814330,1750935046993,-184.89,0.00016986,2]
[367814332,1750935047003,-460.0,0.00016986,2]
[367814334,1750935047013,-460.0,0.00016986,2]
[367814336,1750935047023,-504.31851706,0.00016986,2]
[367814338,1750935047032,-460.0,0.00016986,2]
[367814340,1750935047041,-458.0,0.00016986,2]
[367814342,1750935047051,-460.0,0.00016986,2]
[367814344,1750935047060,-460.0,0.00016986,2]
[367814346,1750935047069,-460.0,0.00016986,2]
[367814348,1750935047078,-460.0,0.00016986,2]
[367814350,1750935047087,-198.70633996,0.00016986,2]
[367814352,1750935047096,-460.0,0.00016986,2]
[367814354,1750935047105,-460.0,0.00016986,2]
[367814356,1750935047115,-460.0,0.00016986,2]
[367814358,1750935047124,-460.0,0.00016986,2]
[367814360,1750935047133,-621.64,0.00016986,2]
[367814362,1750935047142,-501.31,0.00016986,2]
[367814364,1750935047151,-460.0,0.00016986,2]
[367814366,1750935047160,-460.0,0.00016986,2]
[367814367,1750935047170,-460.0,0.00016986,2]
[367814369,1750935047180,-460.0,0.00016986,2]
[367814372,1750935047192,-460.0,0.00016986,2]
[367814373,1750935047202,-460.0,0.00016986,2]
[367814375,1750935047212,-1118.1,0.00016986,2]
[367814377,1750935047222,-651.46,0.00016986,2]
[367814379,1750935047231,-460.0,0.00016986,2]
[367814381,1750935047240,-448.84709465,0.00016986,2]
[367814383,1750935047249,-460.0,0.00016986,2]
[367814385,1750935047258,-460.0,0.00016986,2]
[367814387,1750935047267,-460.0,0.00016986,2]
[367814389,1750935047276,-460.0,0.00016986,2]
[367814391,1750935047286,-460.0,0.00016986,2]
[367814393,1750935047295,-460.0,0.00016986,2]
[367814395,1750935047303,-460.0,0.00016986,2]
[367814397,1750935047312,-460.0,0.00016986,2]
[367814398,1750935047321,-460.0,0.00016986,2]
[367814400,1750935047331,-460.0,0.00016986,2]
[367814402,1750935047340,-460.0,0.00016986,2]
[367814404,1750935047350,-460.0,0.00016986,2]
[367814406,1750935047359,-460.0,0.00016986,2]
[367814408,1750935047368,-538.54,0.00016986,2]
[367814410,1750935047378,-460.0,0.00016986,2]
[367814412,1750935047387,-460.0,0.00016986,2]
[367814414,1750935047396,-460.0,0.00016986,2]
[367814416,1750935047406,-420.0,0.00016986,2]
[367814418,1750935047415,-460.0,0.00016986,2]
[367814420,1750935047424,-460.0,0.00016986,2]
[367814422,1750935047434,-460.0,0.00016986,2]
[367814424,1750935047443,-460.0,0.00016986,2]
[367814426,1750935047452,-240.84538776,0.00016986,2]
[367814428,1750935047464,-460.0,0.00016986,2]
[367814430,1750935047473,-460.0,0.00016986,2]
[367814432,1750935047482,-460.0,0.00016986,2]
[367814434,1750935047491,-460.0,0.00016986,2]
[367814435,1750935047502,-460.0,0.00016986,2]
[367814437,1750935047511,-460.0,0.00016986,2]
[367814439,1750935047521,-460.0,0.00016986,2]
[367814441,1750935047530,-422.30076626,0.00016986,2]
[367814443,1750935047539,-460.0,0.00016986,2]
[367814446,1750935047551,-460.0,0.00016986,2]
[367814458,1750935047656,-625.07,0.00016986,2]
[367814460,1750935047666,-460.0,0.00016986,2]
[367814462,1750935047675,-460.0,0.00016986,2]
[367814464,1750935047685,-460.0,0.00016986,2]
[367814466,1750935047694,-460.0,0.00016986,2]
[367814468,1750935047703,-460.0,0.00016986,2]
[367814470,1750935047713,-604.39,0.00016986,2]
[367814472,1750935047723,-460.0,0.00016986,2]
[367814473,1750935047732,-460.0,0.00016986,2]
[367814475,1750935047741,-460.0,0.00016986,2]
[367814477,1750935047750,-460.0,0.00016986,2]
[367814479,1750935047759,-460.0,0.00016986,2]
[367814481,1750935047768,-460.0,0.00016986,2]
[367814483,1750935047778,-460.0,0.00016986,2]
[367814485,1750935047787,-460.0,0.00016986,2]
[367814487,1750935047800,-460.0,0.00016986,2]
[367814489,1750935047809,-460.0,0.00016986,2]
[367814491,1750935047825,-460.0,0.00016986,2]
[367814493,1750935047835,-460.0,0.00016986,2]
[367814495,1750935047844,-460.0,0.00016986,2]
[367814497,1750935047855,-460.0,0.00016986,2]
[367814499,1750935047864,-460.0,0.00016986,2]
[367814501,1750935047873,-460.0,0.00016986,2]
[367814503,1750935047882,-460.0,0.00016986,2]
[367814505,1750935047892,-460.0,0.00016986,2]
[367814507,1750935047901,-460.0,0.00016986,2]
[367814508,1750935047910,-484.22,0.00016986,2]
[367814510,1750935047920,-460.0,0.00016986,2]
[367814511,1750935047929,-460.0,0.00016986,2]
[367814512,1750935047938,-2275.04,0.00016986,2]
[367814513,1750935047947,-460.0,0.00016986,2]
[367814514,1750935047958,-460.0,0.00016986,2]
[367814515,1750935047967,-460.0,0.00016986,2]
[367814516,1750935047976,-460.0,0.00016986,2]
[367814517,1750935047985,-1636.78,0.00016986,2]
[367814518,1750935047995,-460.0,0.00016986,2]
[367814519,1750935048004,-460.0,0.00016986,2]
[367814520,1750935048012,-460.0,0.00016986,2]
[367814521,1750935048021,-460.0,0.00016986,2]
[367814522,1750935048031,-460.0,0.00016986,2]
[367814523,1750935048040,-460.0,0.00016986,2]
[367814524,1750935048049,-468.95,0.00016986,2]
[367814525,1750935048058,-597.31,0.00016986,2]
[367814526,1750935048067,-460.0,0.00016986,2]
[367814527,1750935048077,-460.0,0.00016986,2]
[367814528,1750935048086,-460.0,0.00016986,2]
[367814529,1750935048096,-460.0,0.00016986,2]
[367814530,1750935048105,-460.0,0.00016986,2]
[367814531,1750935048115,-460.0,0.00016986,2]
[367814532,1750935048124,-2327.62,0.00016986,2]
[367814533,1750935048134,-517.49,0.00016986,2]
[367814534,1750935048143,-460.0,0.00016986,2]
[367814536,1750935048153,-460.0,0.00016986,2]
[367814538,1750935048162,-460.0,0.00016986,2]
[367814540,1750935048172,-460.0,0.00016986,2]
[367814542,1750935048181,-3709.84,0.00016986,2]
[367814544,1750935048190,-460.0,0.00016986,2]
[367814546,1750935048200,-618.59,0.00016986,2]
[367814548,1750935048211,-490.87,0.00016986,2]
[367814550,1750935048221,-460.0,0.00016986,2]
[367814552,1750935048231,-460.0,0.00016986,2]
[367814555,1750935048241,-734.47,0.00016986,2]
[367814557,1750935048250,-4220.73,0.00016986,2]
[367814558,1750935048259,-460.0,0.00016986,2]
[367814560,1750935048269,-460.0,0.00016986,2]
[367814562,1750935048278,-460.0,0.00016986,2]
[367814564,1750935048287,-460.0,0.00016986,2]
[367814566,1750935048296,-566.79,0.00016986,2]
[367814568,1750935048305,-2226.78,0.00016986,2]
[367814570,1750935048315,-518.08,0.00016986,2]
[367814572,1750935048324,-473.96,0.00016986,2]
[367814574,1750935048333,-460.0,0.00016986,2]
[367814576,1750935048343,-647.15,0.00016986,2]
[367814578,1750935048352,-832.77,0.00016986,2]
[367814580,1750935048361,-3294.22,0.00016986,2]
[367814582,1750935048370,-460.0,0.00016986,2]
[367814584,1750935048379,-1572.37,0.00016986,2]
[367814586,1750935048389,-984.53,0.00016986,2]
[367814588,1750935048398,-460.0,0.00016986,2]
[367814590,1750935048407,-1306.82,0.00016986,2]
[367814592,1750935048416,-460.0,0.00016986,2]
[367814594,1750935048425,-460.0,0.00016986,2]
[367814596,1750935048434,-460.0,0.00016986,2]
[367814598,1750935048444,-460.0,0.00016986,2]
[367814600,1750935048453,-460.0,0.00016986,2]
[367814602,1750935048463,-828.69,0.00016986,2]
[367814604,1750935048472,-460.0,0.00016986,2]
[367814606,1750935048481,-576.8,0.00016986,2]
[367814608,1750935048491,-460.0,0.00016986,2]
[367814610,1750935048500,-460.0,0.00016986,2]
[367814612,1750935048510,-542.24,0.00016986,2]
[367814614,1750935048519,-460.0,0.00016986,2]
[367814616,1750935048528,-460.0,0.00016986,2]
[367814618,1750935048538,-460.0,0.00016986,2]
[367814620,1750935048548,-460.0,0.00016986,2]
[367814622,1750935048558,-460.0,0.00016986,2]
[367814624,1750935048568,-513.71,0.00016986,2]
[367814626,1750935048577,-460.0,0.00016986,2]
[367814628,1750935048587,-1511.1,0.00016986,2]
[367814630,1750935048596,-1812.24,0.00016986,2]
[367814632,1750935048605,-460.0,0.00016986,2]
[367814634,1750935048616,-460.0,0.00016986,2]
[367814636,1750935048625,-460.0,0.00016986,2]
[367814638,1750935048635,-460.0,0.00016986,2]
[367814640,1750935048644,-460.0,0.00016986,2]
[367814642,1750935048653,-582.33,0.00016986,2]
[367814644,1750935048663,-460.0,0.00016986,2]
[367814646,1750935048672,-460.0,0.00016986,2]
[367814648,1750935048682,-460.0,0.00016986,2]
[367814650,1750935048692,-542.26144731,0.00016986,2]
[367814652,1750935048702,-1511.08,0.00016986,2]
[367814654,1750935048711,-502.37,0.00016986,2]
[367814656,1750935048721,-460.0,0.00016986,2]
[367814658,1750935048730,-460.0,0.00016986,2]
[367814660,1750935048739,-688.89,0.00016986,2]
[367814662,1750935048748,-460.0,0.00016986,2]
[367814664,1750935048758,-1077.29,0.00016986,2]
[367814666,1750935048767,-1977.63,0.00016986,2]
[367814668,1750935048776,-460.0,0.00016986,2]
[367814670,1750935048786,-582.41,0.00016986,2]
[367814672,1750935048795,-460.0,0.00016986,2]
[367814674,1750935048807,-1625.98,0.00016986,2]
[367814676,1750935048816,-460.0,0.00016986,2]
[367814678,1750935048825,-460.0,0.00016986,2]
[367814680,1750935048835,-574.56,0.00016986,2]
[367814682,1750935048844,-211.47745591,0.00016986,2]
[367814684,1750935048854,-460.0,0.00016986,2]
[367814686,1750935048864,-460.0,0.00016986,2]
[367814688,1750935048874,-460.0,0.00016986,2]
[367814690,1750935048884,-460.0,0.00016986,2]
[367814692,1750935048894,-460.0,0.00016986,2]
[367814694,1750935048903,-460.0,0.00016986,2]
[367814696,1750935048913,-538.9,0.00016986,2]
[367814698,1750935048922,-460.0,0.00016986,2]
[367814700,1750935048931,-460.0,0.00016986,2]
[367814702,1750935048940,-460.0,0.00016986,2]
[367814704,1750935048950,-460.0,0.00016986,2]
[367814706,1750935048960,-825.76,0.00016986,2]
[367814708,1750935048970,-460.0,0.00016986,2]
[367814710,1750935048980,-460.0,0.00016986,2]
[367814712,1750935048989,-211.57912071,0.00016986,2]
[367814714,1750935048999,-460.0,0.00016986,2]
[367814716,1750935049008,-460.0,0.00016986,2]
[367814718,1750935049018,-460.0,0.00016986,2]
[367814720,1750935049028,-460.0,0.00016986,2]
[367814722,1750935049037,-828.76,0.00016986,2]
[367814724,1750935049046,-460.0,0.00016986,2]
[367814726,1750935049056,-460.0,0.00016986,2]
[367814728,1750935049065,-460.0,0.00016986,2]
[367814730,1750935049074,-1259.49,0.00016986,2]
[367814732,1750935049085,-460.0,0.00016986,2]
[367814734,1750935049094,-460.0,0.00016986,2]
[367814736,1750935049106,-460.0,0.00016986,2]
[367814738,1750935049115,-2002.73,0.00016986,2]
[367814740,1750935049124,-460.0,0.00016986,2]
[367814742,1750935049133,-460.0,0.00016986,2]
[367814744,1750935049143,-460.0,0.00016986,2]
[367814746,1750935049153,-1542.12,0.00016986,2]
[367814748,1750935049162,-460.0,0.00016986,2]
[367814750,1750935049171,-1156.67,0.00016986,2]
[367814752,1750935049181,-460.0,0.00016986,2]
[367814754,1750935049191,-460.0,0.00016986,2]
[367814756,1750935049200,-442.7716634,0.00016986,2]
[367814758,1750935049211,-1994.94775522,0.00017,2]
[367814760,1750935049222,-827.0,0.00017013,2]
[367814762,1750935049232,-803.0,0.00017013,2]
[367814764,1750935049241,-827.0,0.00017041,2]
[367814766,1750935049250,-803.0,0.00017041,2]
[367814768,1750935049259,-827.0,0.00017068,2]
[367814770,1750935049268,-803.0,0.00017068,2]
[367814772,1750935049277,-827.0,0.00017096,2]
[367814774,1750935049287,-803.0,0.00017096,2]
[367814776,1750935049296,-500.0,0.00017117,2]
[367814778,1750935049306,-500.0,0.00017117,2]
[367814780,1750935049315,-500.0,0.00017117,2]
[367814782,1750935049325,-827.0,0.00017123,2]
[367814784,1750935049334,-803.0,0.00017123,2]
[367814786,1750935049343,-504.89735478,0.00017127,2]
[367814788,1750935049353,-500.0,0.00017127,2]
[367814790,1750935049363,-500.0,0.00017127,2]
[367814792,1750935049372,-827.0,0.0001715,2]
[367814794,1750935049381,-803.0,0.0001715,2]
[367814796,1750935049392,-604.91226586,0.0001716,2]
[367814797,1750935049401,-2405.49793726,0.00017176,2]
[367814799,1750935049411,-827.0,0.00017178,2]
[367814801,1750935049420,-803.0,0.00017178,2]
[367814803,1750935049429,-827.0,0.00017205,2]
[367814805,1750935049438,-803.0,0.00017205,2]
[367814807,1750935049448,-827.0,0.00017233,2]
[367814809,1750935049457,-803.0,0.00017233,2]
[367814811,1750935049466,-827.0,0.0001726,2]
[367814813,1750935049477,-803.0,0.0001726,2]
[367814815,1750935049486,-460.0,0.0001726,2]
[367814817,1750935049496,-460.0,0.0001726,2]
[367814819,1750935049506,-285.44,0.0001726,2]
[367814821,1750935049515,-440.0,0.0001726,2]
[367814823,1750935049524,-460.0,0.0001726,2]
[367814825,1750935049533,-460.0,0.0001726,2]
[367814827,1750935049542,-460.0,0.0001726,2]
[367814829,1750935049551,-460.0,0.0001726,2]
[367814831,1750935049561,-460.0,0.0001726,2]
[367814833,1750935049570,-460.0,0.0001726,2]
[367814835,1750935049580,-460.0,0.0001726,2]
[367814837,1750935049589,-460.0,0.0001726,2]
[367814839,1750935049598,-460.0,0.0001726,2]
[367814841,1750935049607,-621.64,0.0001726,2]
[367814843,1750935049616,-501.31,0.0001726,2]
[367814845,1750935049625,-460.0,0.0001726,2]
[367814847,1750935049634,-460.0,0.0001726,2]
[367814849,1750935049643,-460.0,0.0001726,2]
[367814851,1750935049652,-460.0,0.0001726,2]
[367814853,1750935049661,-1118.1,0.0001726,2]
[367814855,1750935049671,-651.46,0.0001726,2]
[367814867,1750935049772,-460.0,0.0001726,2]
[367814869,1750935049782,-460.0,0.0001726,2]
[367814871,1750935049792,-460.0,0.0001726,2]
[367814873,1750935049801,-460.0,0.0001726,2]
[367814875,1750935049810,-460.0,0.0001726,2]
[367814877,1750935049820,-460.0,0.0001726,2]
[367814879,1750935049830,-460.0,0.0001726,2]
[367814881,1750935049839,-460.0,0.0001726,2]
[367814883,1750935049848,-460.0,0.0001726,2]
[367814885,1750935049857,-460.0,0.0001726,2]
[367814887,1750935049867,-460.0,0.0001726,2]
[367814889,1750935049876,-460.0,0.0001726,2]
[367814891,1750935049886,-460.0,0.0001726,2]
[367814893,1750935049896,-460.0,0.0001726,2]
[367814895,1750935049905,-460.0,0.0001726,2]
[367814897,1750935049914,-460.0,0.0001726,2]
[367814899,1750935049923,-460.0,0.0001726,2]
[367814901,1750935049933,-460.0,0.0001726,2]
[367814903,1750935049942,-460.0,0.0001726,2]
[367814905,1750935049951,-460.0,0.0001726,2]
[367814907,1750935049961,-460.0,0.0001726,2]
[367814909,1750935049971,-460.0,0.0001726,2]
[367814911,1750935049980,-460.0,0.0001726,2]
[367814913,1750935049990,-460.0,0.0001726,2]
[367814915,1750935049999,-460.0,0.0001726,2]
[367814917,1750935050010,-460.0,0.0001726,2]
[367814919,1750935050019,-460.0,0.0001726,2]
[367814921,1750935050029,-460.0,0.0001726,2]
[367814923,1750935050038,-625.07,0.0001726,2]
[367814925,1750935050047,-460.0,0.0001726,2]
[367814927,1750935050057,-460.0,0.0001726,2]
[367814929,1750935050066,-460.0,0.0001726,2]
[367814931,1750935050075,-460.0,0.0001726,2]
[367814933,1750935050085,-460.0,0.0001726,2]
[367814935,1750935050095,-460.0,0.0001726,2]
[367814937,1750935050104,-460.0,0.0001726,2]
[367814939,1750935050113,-460.0,0.0001726,2]
[367814941,1750935050122,-154.46,0.0001726,2]
[367814944,1750935050132,-460.0,0.0001726,2]
[367814946,1750935050142,-460.0,0.0001726,2]
[367814948,1750935050151,-460.0,0.0001726,2]
[367814950,1750935050161,-401.90887903,0.0001726,2]
[367814952,1750935050170,-460.0,0.0001726,2]
[367814954,1750935050179,-460.0,0.0001726,2]
[367814956,1750935050188,-460.0,0.0001726,2]
[367814958,1750935050198,-460.0,0.0001726,2]
[367814960,1750935050207,-460.0,0.0001726,2]
[367814962,1750935050218,-460.0,0.0001726,2]
[367814964,1750935050228,-460.0,0.0001726,2]
[367814966,1750935050239,-460.0,0.0001726,2]
[367814968,1750935050248,-460.0,0.0001726,2]
[367814970,1750935050257,-460.0,0.0001726,2]
[367814972,1750935050267,-460.0,0.0001726,2]
[367814974,1750935050277,-484.22,0.0001726,2]
[367814976,1750935050286,-460.0,0.0001726,2]
[367814978,1750935050296,-460.0,0.0001726,2]
[367814980,1750935050305,-2275.04,0.0001726,2]
[367814981,1750935050315,-460.0,0.0001726,2]
[367814983,1750935050325,-460.0,0.0001726,2]
[367814985,1750935050334,-460.0,0.0001726,2]
[367814987,1750935050344,-460.0,0.0001726,2]
[367814989,1750935050353,-1636.78,0.0001726,2]
[367814991,1750935050363,-460.0,0.0001726,2]
[367814993,1750935050372,-460.0,0.0001726,2]
[367814995,1750935050381,-460.0,0.0001726,2]
[367814997,1750935050392,-460.0,0.0001726,2]
[367814999,1750935050401,-460.0,0.0001726,2]
[367815000,1750935050410,-460.0,0.0001726,2]
[367815001,1750935050419,-597.31,0.0001726,2]
[367815002,1750935050428,-468.95,0.0001726,2]
[367815003,1750935050437,-460.0,0.0001726,2]
[367815004,1750935050447,-460.0,0.0001726,2]
[367815005,1750935050455,-460.0,0.0001726,2]
[367815006,1750935050464,-460.0,0.0001726,2]
[367815007,1750935050474,-460.0,0.0001726,2]
[367815009,1750935050483,-2327.62,0.0001726,2]
[367815011,1750935050492,-517.49,0.0001726,2]
[367815013,1750935050502,-460.0,0.0001726,2]
[367815015,1750935050512,-460.0,0.0001726,2]
[367815017,1750935050521,-460.0,0.0001726,2]
[367815019,1750935050530,-460.0,0.0001726,2]
[367815021,1750935050540,-3709.84,0.0001726,2]
[367815023,1750935050549,-460.0,0.0001726,2]
[367815025,1750935050559,-618.59,0.0001726,2]
[367815027,1750935050569,-490.87,0.0001726,2]
[367815029,1750935050579,-460.0,0.0001726,2]
[367815031,1750935050589,-460.0,0.0001726,2]
[367815033,1750935050598,-734.47,0.0001726,2]
[367815035,1750935050607,-4220.73,0.0001726,2]
[367815037,1750935050616,-460.0,0.0001726,2]
[367815039,1750935050625,-460.0,0.0001726,2]
[367815041,1750935050634,-460.0,0.0001726,2]
[367815043,1750935050643,-460.0,0.0001726,2]
[367815045,1750935050653,-566.79,0.0001726,2]
[367815047,1750935050662,-2226.78,0.0001726,2]
[367815049,1750935050671,-518.08,0.0001726,2]
[367815051,1750935050681,-440.0,0.0001726,2]
[367815053,1750935050691,-647.15,0.0001726,2]
[367815055,1750935050700,-832.77,0.0001726,2]
[367815057,1750935050709,-3294.22,0.0001726,2]
[367815059,1750935050718,-460.0,0.0001726,2]
[367815061,1750935050727,-1572.37,0.0001726,2]
[367815063,1750935050737,-984.53,0.0001726,2]
[367815065,1750935050747,-460.0,0.0001726,2]
[367815067,1750935050756,-1306.82,0.0001726,2]
[367815068,1750935050765,-328.64622129,0.0001726,2]
[367815070,1750935050774,-472.03175633,0.0001726,2]
[367815072,1750935050783,-460.0,0.0001726,2]
[367815074,1750935050793,-460.0,0.0001726,2]
[367815076,1750935050806,-460.0,0.0001726,2]
[367815078,1750935050815,-828.69,0.0001726,2]
[367815080,1750935050824,-460.0,0.0001726,2]
[367815082,1750935050833,-576.8,0.0001726,2]
[367815084,1750935050844,-460.0,0.0001726,2]
[367815087,1750935050854,-460.0,0.0001726,2]
[367815089,1750935050864,-542.24,0.0001726,2]
[367815090,1750935050873,-460.0,0.0001726,2]
[367815092,1750935050882,-460.0,0.0001726,2]
[367815094,1750935050893,-460.0,0.0001726,2]
[367815096,1750935050902,-592.99146106,0.0001726,2]
[367815098,1750935050912,-460.0,0.0001726,2]
[367815100,1750935050921,-460.0,0.0001726,2]
[367815102,1750935050931,-1812.24,0.0001726,2]
[367815104,1750935050940,-1511.1,0.0001726,2]
[367815106,1750935050949,-460.0,0.0001726,2]
[367815108,1750935050959,-460.0,0.0001726,2]
[367815110,1750935050969,-460.0,0.0001726,2]
[367815112,1750935050977,-460.0,0.0001726,2]
[367815114,1750935050986,-460.0,0.0001726,2]
[367815116,1750935050995,-582.33,0.0001726,2]
[367815118,1750935051003,-460.0,0.0001726,2]
[367815120,1750935051013,-460.0,0.0001726,2]
[367815122,1750935051022,-460.0,0.0001726,2]
[367815124,1750935051031,-1511.08,0.0001726,2]
[367815126,1750935051041,-502.37,0.0001726,2]
[367815128,1750935051050,-460.0,0.0001726,2]
[367815130,1750935051059,-460.0,0.0001726,2]
[367815132,1750935051068,-688.89,0.0001726,2]
[367815134,1750935051077,-1077.29,0.0001726,2]
[367815136,1750935051087,-460.0,0.0001726,2]
[367815138,1750935051096,-343.37,0.0001726,2]
[367815141,1750935051105,-582.41,0.0001726,2]
[367815143,1750935051115,-1977.63,0.0001726,2]
[367815145,1750935051124,-460.0,0.0001726,2]
[367815147,1750935051133,-1625.98,0.0001726,2]
[367815149,1750935051143,-460.0,0.0001726,2]
[367815151,1750935051152,-460.0,0.0001726,2]
[367815153,1750935051161,-574.56,0.0001726,2]
[367815155,1750935051170,-460.0,0.0001726,2]
[367815157,1750935051180,-460.0,0.0001726,2]
[367815159,1750935051189,-460.0,0.0001726,2]
[367815161,1750935051198,-460.0,0.0001726,2]
[367815163,1750935051207,-175.4918916,0.0001726,2]
[367815165,1750935051216,-460.0,0.0001726,2]
[367815167,1750935051226,-538.9,0.0001726,2]
[367815169,1750935051235,-460.0,0.0001726,2]
[367815171,1750935051244,-460.0,0.0001726,2]
[367815173,1750935051254,-460.0,0.0001726,2]
[367815175,1750935051263,-460.0,0.0001726,2]
[367815177,1750935051272,-825.76,0.0001726,2]
[367815179,1750935051281,-460.0,0.0001726,2]
[367815181,1750935051290,-460.0,0.0001726,2]
[367815183,1750935051300,-460.0,0.0001726,2]
[367815185,1750935051309,-460.0,0.0001726,2]
[367815187,1750935051320,-460.0,0.0001726,2]
[367815189,1750935051330,-460.0,0.0001726,2]